Cogmind - Beta 13 X1 @@@ ROGUE MODE // 2023.06.25 @ 12:25:30 Player: Shadow Pussy wanter Result: Destroyed self with Grenade Launcher Performance ------------- Evolutions (0) 0 Regions Visited (3) 600 Robots Destroyed (31) 155 Value Destroyed (850) 850 Prototype IDs (10) 200 Alien Tech Used (0) 0 Bonus (0) 0 TOTAL SCORE: 1805 Bonus ------- None Cogmind --------- Core Integrity 0/250 Matter 260/300 Energy 200/200 System Corruption 0% Temperature Cool (0) Movement Walking (130) Location -10/Subcaves Parts ------- > --- POWER (1) -------- Subdweller Power Source > --- PROPULSION (2) --- Aluminum Leg Makeshift Leg > --- UTILITY (2) ------ (None) > --- WEAPON (2) ------- Heavy Battle Rifle Grenade Launcher > --- INVENTORY (5) ---- Gun Armor Subdweller Laser Subdweller Shrapnel Launcher Peak State ------------ > --- POWER ------------ Light Ion Engine > --- PROPULSION ------- Aluminum Leg Makeshift Leg > --- UTILITY ---------- Scrap Shield > --- WEAPON ----------- Light Assault Rifle Makeshift Axe > --- INVENTORY -------- Subdweller Power Source Wheel Gun Armor Makeshift Shrapnel Gun Grenade Launcher [Rating: 16] Favorites ----------- Power Light Ion Engine Engine Light Ion Engine Propulsion Aluminum Leg Treads Light Treads Leg Aluminum Leg Wheel Wheel Utility Small Storage Unit Device Improved Terrain Scanner Storage Small Storage Unit Protection Scrap Shield Weapon Heavy Battle Rifle Energy Gun EM Pulse Gun Ballistic Gun Heavy Battle Rifle Launcher Grenade Launcher Slashing Weapon Makeshift Axe Build | -11 -10 -10 -10 ------- Run | Jun Mat Min Sub Slots Evolved . | . . . . Power . | . . . . Propulsion . | . . . . Utility . | . . . . Weapon . | . . . . Parts Attached 33 | 7 2 1 23 Power 3 | 1 1 . 1 Engine 3 | 1 1 . 1 Core . | . . . . Reactor . | . . . . Propulsion 8 | 2 . . 6 Treads 2 | 2 . . . Leg 5 | . . . 5 Wheel 1 | . . . 1 Hover . | . . . . Flight . | . . . . Utility 3 | 2 . . 1 Device 1 | 1 . . . Storage 1 | 1 . . . Processor . | . . . . Hackware . | . . . . Protection 1 | . . . 1 Artifact . | . . . . Weapon 19 | 2 1 1 15 Energy Gun 5 | 2 1 . 2 Energy Cannon . | . . . . Ballistic Gun 7 | . . . 7 Ballistic Cannon . | . . . . Launcher 4 | . . 1 3 Special Weapon . | . . . . Impact Weapon . | . . . . Slashing Weapon 3 | . . . 3 Piercing Weapon . | . . . . Special Melee Weapon . | . . . . Unidentified Prototypes . | . . . . Parts Lost 12 | . 2 2 8 Power 2 | . 1 . 1 Propulsion 3 | . . . 3 Utility 1 | . . . 1 Weapon 6 | . 1 2 3 Highest Loss Streak 2 | . 2 2 2 To Critical Strikes . | . . . . Average Slot Usage (%) 81 | . 99 91 78 Engine 13 | . 13 14 13 Treads 8 | . 28 28 4 Leg 18 | . . . 22 Device 5 | . 14 14 3 Storage 5 | . 14 14 3 Protection 2 | . . . 2 Energy Gun 6 | . 28 13 3 Ballistic Gun 15 | . . . 18 Launcher 2 | . . 7 2 Slashing Weapon 2 | . . . 2 Naked Turns . | . . . . Heaviest Build 25 | 13 13 13 25 Greatest Support 40 | 40 40 40 40 Greatest Overweight (x) 2 | 1 . . 2 Average Overweight (x) . | . . . . Largest Inventory Capacity 8 | 8 8 8 8 Average Capacity 6 | 7 8 8 5 Most Carried 8 | 6 8 7 8 Average Carried 5 | 4 6 6 5 Final Capacity 8 | 8 8 8 5 Final Carried 7 | 6 7 6 3 Class Distribution -------------------- 100% | Mutant Dominant Class ---------------- Mutant | -10/Materials Mutant | -10/Mines Mutant | -10/Subcaves Resources | -11 -10 -10 -10 ----------- Run | Jun Mat Min Sub Matter Collected 738 | 270 20 15 433 Remotely . | . . . . Salvage Created 996 | 197 175 133 491 Parts 75 | 15 10 10 40 Haulers Intercepted . | . . . . Recyclers Shooed . | . . . . Parts Field Recycled . | . . . . Retrieved Matter . | . . . . Parts Self-Destructed 8 | . . . 8 Prevented . | . . . . Kills | -11 -10 -10 -10 ------- Run | Jun Mat Min Sub Combat Hostiles Destroyed 25 | . 4 5 16 Melee 2 | . . . 2 Guns 12 | . 3 2 7 AOE 11 | . 1 3 7 Classes Destroyed 7 | 3 1 1 2 Worker 1 | 1 . . . Tunneler 4 | 4 . . . Recycler 1 | 1 . . . Swarmer 6 | . . 3 3 Grunt 6 | . 4 2 . Sentry 1 | . . . 1 Subdweller 12 | . . . 12 Best Kill Streak 4 | 3 4 3 3 Combat Bots Only 4 | . 4 3 3 Max Kills in Single Turn 3 | 1 1 3 2 Gunslinging . | . . . . Exploded 3 | . 1 3 2 Melee 1 | . . . 1 Uniques/NPCs Destroyed . | . . . . Combat | -11 -10 -10 -10 -------- Run | Jun Mat Min Sub Damage Taken 1540 | 34 204 240 1062 Core 251 | . 39 35 177 Absorbed by Shields . | . . . . Core Remaining (%) 100 | 100 . . . Volleys Fired 100 | 10 9 13 68 Largest 2 | 2 2 2 2 Hottest 93 | 80 80 80 93 Shots Fired 149 | 20 17 24 88 Gun 139 | 20 17 23 79 Cannon . | . . . . Launcher 10 | . . 1 9 Special . | . . . . Kinetic 65 | . . . 65 Thermal 13 | . . . 13 Explosive 10 | . . 1 9 Electromagnetic 61 | 20 17 23 1 Robot Hit Streak 19 | 4 15 19 13 Robot Miss Streak 7 | 2 1 7 2 Penetration Max . | . . . . Secondary Targets . | . . . . Shots Hit Robots 86 | 13 15 10 48 Core Hits 44 | 6 6 8 24 Critical Kills . | . . . . Critical Parts Destroyed . | . . . . Critical Strikes 1 | 1 . . . Corrupt 1 | 1 . . . Melee Attacks 13 | . . . 13 Impact . | . . . . Slashing 13 | . . . 13 Piercing . | . . . . Sneak Attacks . | . . . . Combat Hostiles . | . . . . Follow-up Attacks . | . . . . Damage Inflicted 2113 | 296 277 243 1297 Guns 1212 | 201 191 118 702 Cannons . | . . . . Explosions 751 | 95 86 125 445 Melee 137 | . . . 137 Ramming 13 | . . . 13 Kinetic 659 | . . . 659 Thermal 224 | 95 86 . 43 Explosive 570 | . . 125 445 Electromagnetic 510 | 201 191 118 . Impact . | . . . . Slashing 137 | . . . 137 Piercing . | . . . . Highest Corruption . | . . . . Average Corruption . | . . . . Corruption Purged . | . . . . Corruption Blocked . | . . . . Overload Shots . | . . . . Overflow Damage 56 | 11 6 . 39 Projectiles . | . . . . Explosions 56 | 11 6 . 39 Melee . | . . . . Knockbacks . | . . . . Impact . | . . . . Kinetic . | . . . . Secondary . | . . . . Self-Inflicted Damage 175 | 34 46 . 95 Shots 5 | 1 1 . 3 Rammed 1 | . . . 1 Targets Rammed 1 | . . . 1 Kicked . | . . . . Crushed . | . . . . Highest Temperature 138 | 138 48 120 . Average Temperature 43 | 57 16 49 . Received Heat Transfer 267 | . 87 66 114 Siege Activations . | . . . . Robots Corrupted . | . . . . Combat Hostiles . | . . . . Parts Fried 4 | 4 . . . Impact Corruptions . | . . . . Robots Melted . | . . . . Combat Hostiles . | . . . . Parts Melted . | . . . . Heat Transferred 250 | 100 100 . 50 Parts Sabotaged . | . . . . Parts Stolen . | . . . . Parts Stripped . | . . . . Power Chain Reactions 3 | 2 1 . . Missiles Intercepted . | . . . . Alert | -11 -10 -10 -10 ------- Run | Jun Mat Min Sub Peak Influence 153 | 30 107 153 . Initial 41 | . 19 41 . Average 73 | 11 65 113 . Maximum Alert Level . | . . . . Low Security (%) 100 | 100 100 100 . Level 1 . | . . . . Level 2 . | . . . . Level 3 . | . . . . Level 4 . | . . . . Level 5 . | . . . . High Security . | . . . . Max Security . | . . . . Squads Dispatched . | . . . . Investigation . | . . . . Extermination . | . . . . Reinforcement . | . . . . Assault . | . . . . Garrison . | . . . . Intercept . | . . . . Searches Triggered . | . . . . Construction Impeded . | . . . . Haulers Reinforced . | . . . . Active Scanning Responses . | . . . . Cargo Convoy Interrupts . | . . . . Stealth | -11 -10 -10 -10 --------- Run | Jun Mat Min Sub Distress Signals 1 | . 1 . . Communications Jammed . | . . . . Distress Signals . | . . . . Times Spotted 34 | . 7 5 22 Peak Tracking Total 7 | . 7 3 4 Tactical Retreats 2 | . 1 . 1 Traps | -11 -10 -10 -10 ------- Run | Jun Mat Min Sub Traps Triggered 4 | . . . 4 Indirectly . | . . . . Trap Hack Attempts . | . . . . Triggered . | . . . . Disarmed . | . . . . Reprogrammed . | . . . . Reused . | . . . . Traps Extracted . | . . . . Installed . | . . . . Triggered . | . . . . Machines | -11 -10 -10 -10 ---------- Run | Jun Mat Min Sub Machines Disabled 1 | . . . 1 Max in Single Turn 1 | . . . 1 Machines Repaired . | . . . . Machines Sabotaged . | . . . . Overloaded Fab Kills . | . . . . Hacking | -11 -10 -10 -10 --------- Run | Jun Mat Min Sub Machines Accessed 3 | . 1 . 2 Terminals 1 | . 1 . . Fabricators . | . . . . Repair Stations . | . . . . Recycling Units . | . . . . Scanalyzers . | . . . . Garrison Access . | . . . . Total Hacks 7 | . 4 . 3 Successful 3 | . . . 3 Failed 4 | . 4 . . Catastrophic . | . . . . Database Lockouts . | . . . . Manual 4 | . 4 . . Terminals 4 | . 4 . . Fabricators . | . . . . Repair Stations . | . . . . Recycling Units . | . . . . Scanalyzers . | . . . . Garrison Access . | . . . . Terminal Hacks 3 | . . . 3 Record 2 | . . . 2 Derelict Proto ID Bank 1 | . . . 1 Fabricator Hacks . | . . . . Repair Station Hacks . | . . . . Recycling Unit Hacks . | . . . . Scanalyzer . | . . . . Garrison Access Hacks . | . . . . Unauthorized Hacks . | . . . . Terminals . | . . . . Fabricators . | . . . . Repair Stations . | . . . . Recycling Units . | . . . . Scanalyzers . | . . . . Garrison Access . | . . . . Data Cores Recovered . | . . . . Used . | . . . . Hacking Detections 1 | . 1 . . Full Trace Events . | . . . . Feedback Events . | . . . . Feedback Blocked . | . . . . Robot Schematics Acquired . | . . . . Robots Built . | . . . . Authchips . | . . . . Time . | . . . . Total Robot Build Rating . | . . . . Part Schematics Acquired . | . . . . Parts Built . | . . . . Authchips . | . . . . Time . | . . . . Total Part Build Rating . | . . . . Parts Repaired . | . . . . Time . | . . . . Parts Recycled . | . . . . Recycled Matter . | . . . . Retrieved Matter . | . . . . Retrieved Components . | . . . . Parts Scanalyzed . | . . . . Part Schematics Acquired . | . . . . Parts Damaged . | . . . . Bothacking | -11 -10 -10 -10 ------------ Run | Jun Mat Min Sub Used RIF Installer . | . . . . Robots Hacked . | . . . . Non-combat . | . . . . Combat . | . . . . Robot Hacks Applied . | . . . . Relay Couplers Released . | . . . . Fabnet Peak Effective % . | . . . . Robots Rewired . | . . . . Allies Hacked . | . . . . Hacks Repelled . | . . . . Allies | -11 -10 -10 -10 -------- Run | Jun Mat Min Sub Total Allies . | . . . . Largest Group . | . . . . Highest-Rated Group . | . . . . Highest-Rated Ally . | . . . . Total Orders . | . . . . Ally Attacks . | . . . . Total Damage . | . . . . Kills . | . . . . Allies Corrupted . | . . . . Allies Melted . | . . . . Intel | -11 -10 -10 -10 ------- Run | Jun Mat Min Sub Robot Analysis Total . | . . . . Derelict Logs Recovered 4 | . . 1 3 Drone Launches . | . . . . Drone Recoveries . | . . . . Exploration | -11 -10 -10 -10 ------------- Run | Jun Mat Min Sub Turns Passed 3111 | 156 201 290 2464 Spaces Moved 1893 | 75 97 152 1569 Core 10 | 10 . . . Treads 436 | 65 97 152 122 Legs 1347 | . . . 1347 Wheels 100 | . . . 100 Hover . | . . . . Flight . | . . . . Fastest Speed 50 | 50 160 160 95 Average Speed 142 | 147 160 160 139 Slowest Speed 260 | 160 160 160 260 Overloaded Moves . | . . . . Propulsion Burnouts . | . . . . Robots Hopped . | . . . . Cave-ins Triggered . | . . . . Exploration Rate (%) 35 | 5 20 28 87 Regions Visited 3 Branch Regions 2 Pre-discovered Areas 1 | . . . 1 Known Exits Taken . | . . . . Unknown Exits Taken 3 | 1 1 1 . Scrap Searched 12 | . . . 12 Spaces Dug . | . . . . Terrain Destroyed 69 | 5 2 12 50 Melee . | . . . . Projectile . | . . . . AOE 69 | 5 2 12 50 Terrain Rammed . | . . . . Walls Destroyed . | . . . . Machines Disabled . | . . . . Actions | -11 -10 -10 -10 --------- Run | Jun Mat Min Sub Total 2128 | 97 126 175 1730 Wait 62 | . 16 10 36 Move 1890 | 74 96 151 1569 Hop . | . . . . Pick Up 16 | 6 3 . 7 Fast Attach 12 | 7 . . 5 Attach 9 | . 2 1 6 Detach 1 | . . . 1 Swap 12 | . . . 12 Drop 9 | . . . 9 Fire 100 | 10 9 13 68 Melee 13 | . . . 13 Ram 1 | . . . 1 Kick . | . . . . Crush . | . . . . Escape Stasis . | . . . . Rewire . | . . . . Trap . | . . . . Miscellaneous 3 | . . . 3 Route ------- -11/Junkyard -10/Materials -10/Mines (discovered 2 exits: [Mat] / *Sub) -10/Subcaves (discovered 2 exits: [*Mat] / [*Rec]) History --------- Turn | Location | Event 6 | -11/Junkyard | Discovered new exit (range 16) 157 | -11/Junkyard | Entered Materials 316 | -10/Materials | Build established: Mutant 337 | -10/Materials | Discovered new exit (range 13) 358 | -10/Materials | Entered Mines 447 | -10/Mines | Discovered new exit (range 12) 526 | -10/Mines | Learned 2 Materials zone layouts 616 | -10/Mines | Discovered new exit (range 8) 648 | -10/Mines | Entered Subcaves 753 | -10/Subcaves | Learned location of Zion (-7) 753 | -10/Subcaves | Met a Zionite searching for "candidates" 965 | -10/Subcaves | A swath of the cavern ceiling suddenly collapsed 1009 | -10/Subcaves | Shifting Twisted Machinery released Battle Cannon 1087 | -10/Subcaves | Shifting Twisted Machinery released Sub. Monowheel 1213 | -10/Subcaves | Disturbed a concealed Subdweller 1510 | -10/Subcaves | Visited Clippyterm 1571 | -10/Subcaves | Learned Materials terminal intel 1603 | -10/Subcaves | Visited 4L-MR0's lab 1617 | -10/Subcaves | Found Gun Armor 1729 | -10/Subcaves | Core integrity fell below 50% 1774 | -10/Subcaves | Shifting Twisted Machinery released Battle Rifle 1787 | -10/Subcaves | Shifting Twisted Machinery released Sub. Machine Gun 1945 | -10/Subcaves | Shifting Twisted Machinery released Sub. Optics 1949 | -10/Subcaves | Shifting Twisted Machinery released Hvy. Battle Rifle 2112 | -10/Subcaves | Learned Materials emergency access door positions 2626 | -10/Subcaves | Disturbed a concealed Subdweller 2627 | -10/Subcaves | Core integrity fell below 20% 2895 | -10/Subcaves | Discovered new exit (range 8) 2932 | -10/Subcaves | Learned location of 1 exit from Materials 2983 | -10/Subcaves | A swath of the cavern ceiling suddenly collapsed 3107 | -10/Subcaves | Discovered new exit (range 16) 3112 | -10/Subcaves | Destroyed self with Grenade Launcher Last Messages --------------- 02741_ Slammed into YY-KVZ(O). 02757_ Dropped Wheel. 02758_ Acquired Mak. Leg. 02828_ Acquired 10 matter. 02833_ Y-45 Defender destroyed. 02834_ Acquired 3 matter. 02839_ Lgt. Treads fries itself beyond repair. 02843_ Hvy. Assault Rifle fries itself beyond repair. 02844_ Imp. Ion Engine fries itself beyond repair. 02847_ Heat Sink fries itself beyond repair. 02895_ EXIT=FOUND 02901_ 3K-GBL(R) destroyed. 02903_ VI-50S(R) destroyed. 02911_ Acquired 25 matter. 02932_ Acquired derelict log, extracted data. Data stored: Materials exits (x1). A swath of the cavern ceiling suddenly collapses. 03048_ Lgt. Ion Engine destroyed. 03048_ Destroyed Lgt. Ion Engine. 03107_ EXIT=FOUND Map ----- +----------------------------------------------------+ | ????????????????????????? ??????# # #?? | | ??????????????????????????? #?????# #?? | | ????????????????????????????# ####?# #?? | | ????????????????????????????# #### #### ##?? | | ????????????????????????????# #### #?###??? | | ????????????????????????????# ### #??????? | | ?????????????????????????????# #??????? | | ?????????????????????????????# ####????? | | ?????????????????????????????# ### ### ##???? | | ??????????????????????? ?????# #?##### #???? | | ????????????????????? #?##### ##???## #???? | | ???????????????????# ?# #??## #???? | | ??????????????????? ## #??# #????? | | ??????????????????? # #### #????? | | ??????????????????? #????? | | ???????????????????? ## ##???? | | ???????????????????## ???# #???? | | ??????????????????##?# ???### # ##### | | ??????????????????# ## #????## ## ## | | ??????###?????????# [ ?????# ## | | ?????## ##????????# ?????# ### | | ?????# ##??# ## ###### #?# | | ?????# ##??? #?## ### | | #???## ##?????????# #??### #?#### | | #???# ##????????## #### ##????####???## | | #???# % ##????????##@ ##??###???????????## | | #???# ## #????????## #????????????????# | | ????# ### ##????????# ##????????????## | | ????# #?## #?????????# #????????????# | | ????# #??###?????????# ss ?????# | | ????# #?####?????????# % ss